bitfinex-derivatives/quotes_ETHF0:USTF0_20241228
["timestamp","ask_amount","ask_price","bid_price","bid_amount"]
[1735395631023,3.2078,3393.4,3392.6,3.2078]
[1735395631319,0.29524,3393.0,3392.8,0.29525]
[1735395631514,0.29524,3393.0,3392.9,0.29524]
[1735395631910,0.29524,3393.0,3392.9,41.09524]
[1735395632110,0.29524,3393.1,3392.9,41.09524]
[1735395632322,0.29524,3393.1,3393.0,3.2078]
[1735395634817,0.29524,3393.1,3392.6,3.2078]
[1735395635122,0.29524,3393.1,3393.0,3.2078]
[1735395635315,0.29523,3393.1,3393.0,3.2078]
[1735395638418,0.29526,3392.7,3392.6,3.2078]
[1735395639522,0.29526,3392.7,3392.6,3.50307]
[1735395639718,0.29526,3392.7,3392.6,3.2078]
[1735395642517,0.29531,3392.2,3392.1,3.2078]
[1735395645422,0.8612,3392.8,3392.1,3.6693766]
[1735395645624,0.29527,3392.6,3392.5,3.2078]
[1735395646025,0.29527,3392.6,3392.5,3.6693766]
[1735395646620,0.29527,3392.6,3392.5,3.2078]
[1735395646825,0.29531,3392.2,3392.1,3.2078]
[1735395647026,0.29531,3392.2,3392.1,3.66937588]
[1735395648324,0.29531,3392.2,3392.1,3.2078]
[1735395650827,1.95968547,3392.2,3392.1,3.2078]
[1735395651033,0.29536,3391.6,3391.5,3.2078]
[1735395651236,0.2954,3391.1,3391.0,5.55840013]
[1735395651426,3.2078,3391.8,3391.0,0.9318]
[1735395651627,0.29535,3391.8,3391.5,3.2078]
[1735395651927,0.29534,3391.8,3391.6,0.29535]
[1735395652133,0.29533,3392.0,3391.7,0.29534]
[1735395652337,0.29533,3392.0,3391.8,1.22714]
[1735395652631,0.29533,3392.0,3391.9,3.2078]
[1735395652822,0.29531,3392.2,3392.0,0.29532]
[1735395653022,3.2078,3392.7,3391.9,8.2078]
[1735395653230,0.29527,3392.6,3392.4,0.29528]
[1735395654027,0.29528,3392.5,3392.3,0.29529]
[1735395654336,0.29528,3392.6,3392.4,0.29528]
[1735395654632,0.29528,3392.5,3392.4,0.46157627]
[1735395655025,0.29528,3392.5,3392.4,0.75686627]
[1735395655631,0.29528,3392.5,3392.4,3.50309]
[1735395655830,0.73811,3393.0,3392.4,3.2078]
[1735395656034,0.73811,3393.0,3392.5,0.29527]
[1735395656035,0.29527,3392.6,3392.5,0.29527]
[1735395656236,0.29527,3392.6,3392.5,0.75681112]
[1735395656431,0.29527,3392.6,3392.5,0.46154112]
[1735395659035,0.29527,3392.6,3392.5,0.75682112]
[1735395659236,0.29527,3392.6,3392.5,0.46154112]
[1735395660237,0.29528,3392.5,3392.4,3.2078]
[1735395660430,0.29528,3392.5,3392.4,3.66937225]
[1735395661134,0.8598,3392.7,3392.4,3.66937225]
[1735395661340,0.29528,3392.6,3392.5,0.29527]
[1735395662039,0.29524,3393.0,3392.9,0.29524]
[1735395662238,3.503,3393.4,3393.3,0.29521]
[1735395662437,0.2952,3393.4,3393.3,3.50301]
[1735395662638,0.2952,3393.4,3393.3,3.2078]
[1735395662831,0.29524,3393.0,3392.9,3.50304]
[1735395663030,0.29524,3393.0,3392.9,3.66926917]
[1735395663230,0.29524,3393.0,3392.9,3.2078]
[1735395663847,0.73799,3393.5,3393.0,0.29523]
[1735395663848,0.29523,3393.1,3393.0,0.29523]
[1735395664531,0.29524,3393.0,3392.9,3.2078]
[1735395665738,1.95961547,3393.0,3392.9,3.2078]
[1735395666632,1.95961547,3393.0,3392.9,1.8076]
[1735395667035,0.29528,3392.5,3392.4,3.2078]
[1735395667752,0.2953,3392.2,3392.1,1.7414]
[1735395667938,0.29532,3392.0,3391.9,3.2078]
[1735395668244,0.2953,3392.3,3391.9,3.50313]
[1735395668441,1.60303,3392.4,3391.9,3.2078]
[1735395668739,0.29535,3391.7,3391.6,1.755]
[1735395668941,0.29535,3391.8,3391.6,1.755]
[1735395669142,0.29535,3391.8,3391.7,0.29535]
[1735395669539,0.29533,3391.9,3391.6,1.755]
[1735395669743,0.29533,3391.9,3391.8,0.29534]
[1735395670041,3.2078,3392.5,3391.8,1.66437547]
[1735395670236,1.66437547,3393.4,3392.7,0.29526]
[1735395670636,0.29524,3393.0,3392.5,2.6304]
[1735395670942,0.29524,3393.0,3392.9,3.50304]
[1735395671353,0.29523,3393.1,3393.0,0.29523]
[1735395671844,0.738,3393.5,3392.9,3.50304]
[1735395671845,0.29524,3393.0,3392.9,3.50304]
[1735395672148,0.29525,3392.8,3392.7,41.09525]
[1735395673344,0.29525,3392.8,3392.7,40.8]
[1735395673748,2.53999,3393.1,3392.5,4.9927]
[1735395673950,0.29527,3392.6,3392.5,4.9927]
[1735395674546,3.42679,3393.1,3392.1,3.2078]
[1735395674547,0.2953,3392.2,3392.1,3.2078]
[1735395675246,0.29533,3391.9,3391.8,4.57087148]
[1735395675443,1.66437547,3392.0,3391.4,4.57087148]
[1735395675643,0.29537,3391.5,3391.4,4.57087148]
[1735395676339,0.29533,3391.9,3391.4,4.57087148]
[1735395676543,0.73818,3392.6,3391.7,3.2078]
[1735395676845,3.2078,3392.7,3392.3,0.29529]
[1735395676846,0.29529,3392.4,3392.3,0.29529]
[1735395677039,4.87217547,3392.7,3392.1,3.2078]
[1735395677242,0.2953,3392.2,3392.1,3.2078]
[1735395677749,0.29532,3392.0,3391.9,0.8897]
[1735395678848,0.29532,3392.0,3391.9,1.18503]
[1735395679351,0.29532,3392.0,3391.9,0.8897]
[1735395679744,0.29536,3391.6,3391.5,0.8655]
[1735395679940,0.73831,3392.0,3391.4,40.8]
[1735395680145,0.29537,3391.5,3391.4,40.8]
[1735395680453,0.29537,3391.4,3391.3,4.0491]
[1735395680845,0.29537,3391.4,3391.3,3.2078]
[1735395681145,0.8838,3391.8,3391.1,41.6655]
[1735395681146,2.54817547,3391.8,3391.1,41.6655]
[1735395681350,0.29539,3391.2,3391.1,41.6655]
[1735395681747,0.29539,3391.2,3391.1,0.8655]
[1735395682855,0.73846,3391.4,3390.9,0.928]
[1735395683056,0.73848,3391.3,3390.8,3.2078]
[1735395683354,0.29542,3390.9,3390.8,44.0078]
[1735395683748,0.29542,3390.9,3390.8,3.2078]
[1735395684846,0.29544,3390.6,3390.5,0.8852]
[1735395685343,0.8617,3391.1,3390.4,3.2078]
[1735395685344,0.29545,3390.5,3390.4,3.2078]
[1735395685641,1.66437547,3391.2,3390.5,0.29544]
[1735395685846,3.2078,3391.3,3390.6,0.8798]
[1735395686046,0.29543,3390.8,3390.7,0.29543]
[1735395686247,0.29543,3390.8,3390.7,0.8722]
[1735395687244,0.29545,3390.5,3390.4,3.2078]
[1735395688248,0.29545,3390.5,3390.1,0.29548]
[1735395688453,0.29545,3390.5,3390.0,3.2078]
[1735395688454,0.29549,3390.1,3390.0,3.50329]
[1735395688953,0.7386,3390.7,3390.0,3.2078]
[1735395689153,0.29549,3390.1,3390.0,3.2078]
[1735395690061,0.29549,3390.1,3389.3,4.57087148]
[1735395690062,0.29553,3389.6,3389.5,3.2078]
[1735395690350,0.29553,3389.6,3389.5,44.30334]
[1735395690753,0.29553,3389.6,3389.5,44.0078]
[1735395692660,0.29553,3389.7,3389.5,44.0078]
[1735395692864,1.8364,3390.4,3389.5,44.0078]
[1735395693160,0.29548,3390.2,3390.1,0.29548]
[1735395693756,0.2955,3390.1,3390.0,0.29549]
[1735395694258,0.29549,3390.2,3390.1,0.29548]
[1735395695553,0.29549,3390.2,3390.0,40.8]
[1735395695554,0.29549,3390.1,3390.0,41.09549]
[1735395696459,0.29548,3390.2,3390.1,0.29548]
[1735395697051,1.66437547,3390.6,3390.0,40.8]
[1735395697257,0.29547,3390.3,3390.2,0.29547]
[1735395697758,0.29549,3390.2,3390.1,0.29549]
[1735395698959,0.29549,3390.2,3390.1,0.29548]
[1735395700563,0.29549,3390.1,3390.0,41.09549]
[1735395700763,0.2955,3390.0,3389.9,3.5033]
[1735395701063,1.66437547,3390.5,3389.9,3.2078]
[1735395701268,0.29549,3390.2,3390.1,0.29548]
[1735395701963,0.29547,3390.3,3390.2,0.29546]
[1735395702561,0.29545,3390.6,3390.5,0.29544]
[1735395702767,0.73855,3391.0,3390.6,0.29543]
[1735395702768,0.29544,3390.7,3390.6,0.29543]
[1735395703482,0.9306,3390.9,3390.5,3.2078]
[1735395703666,0.29544,3390.6,3390.5,3.2078]
[1735395704459,0.29551,3390.0,3389.9,3.2078]
[1735395705371,0.29547,3390.3,3390.2,0.29547]
[1735395705570,5.61077547,3390.7,3390.3,0.29547]
[1735395705571,0.29547,3390.4,3390.3,0.29547]
[1735395705768,1.6867,3390.6,3389.9,3.2078]
[1735395705974,0.2955,3390.0,3389.9,3.2078]
[1735395706270,0.29549,3390.1,3390.0,0.29549]
[1735395706866,1.6867,3390.6,3389.9,3.2078]
[1735395707172,0.29546,3390.5,3390.4,0.29545]
[1735395707372,0.29543,3390.9,3390.8,0.29542]
[1735395707669,0.29542,3391.0,3390.9,0.29541]
[1735395707865,0.29539,3391.3,3391.2,0.29539]
[1735395708065,3.2078,3391.5,3390.9,1.8233]
[1735395708269,2.641,3391.9,3391.3,3.2078]
[1735395708468,0.8436,3391.9,3391.8,0.29534]
[1735395708668,0.9271,3392.4,3391.7,3.2078]
[1735395708876,1.8326,3392.4,3391.8,3.2078]
[1735395709179,3.3195928,3393.2,3392.2,3.2078]
[1735395709180,1.66437547,3393.2,3392.2,3.2078]
[1735395709472,1.20073,3393.1,3392.9,3.2078]
[1735395709778,0.9055,3393.1,3392.9,3.2078]
[1735395709978,9.77438678,3393.5,3392.9,3.2078]
[1735395709979,1.66437547,3393.5,3392.9,3.2078]
[1735395710279,0.2952,3393.5,3393.1,0.29522]
[1735395710479,0.2952,3393.5,3393.2,0.29521]
[1735395710675,1.66437547,3393.8,3393.0,0.29523]
[1735395710873,1.66437547,3393.5,3392.9,3.2078]
[1735395711070,0.29524,3393.0,3392.7,0.29526]
[1735395711270,0.29525,3392.9,3392.8,3.2078]
[1735395711470,0.29529,3392.4,3392.3,0.9054]
[1735395711667,0.73817,3392.7,3391.8,3.50313]
[1735395711867,3.2078,3392.6,3391.8,4.1124]
[1735395712081,4.0682,3392.7,3391.9,3.2078]
[1735395712277,0.8604,3392.7,3392.0,3.2078]
[1735395712476,0.2953,3392.3,3391.8,0.9046]
[1735395712781,0.2953,3392.3,3392.2,3.2078]
[1735395713875,0.8604,3392.7,3392.2,3.2078]
[1735395714275,0.2953,3392.3,3392.2,3.2078]
[1735395716882,0.29529,3392.4,3392.2,3.2078]
[1735395717084,0.29524,3393.0,3392.2,3.2078]
[1735395717288,3.2078,3393.8,3392.9,3.2078]
[1735395717583,0.29519,3393.5,3392.9,3.2078]
[1735395717779,0.29521,3393.3,3393.0,0.29524]
[1735395717979,3.2078,3393.8,3392.9,44.0078]
[1735395718186,3.2078,3393.8,3393.3,0.2952]
[1735395718187,0.29518,3393.6,3393.3,0.2952]
[1735395718387,0.29518,3393.6,3393.1,0.29523]
[1735395718582,0.29518,3393.6,3393.3,0.2952]
[1735395718792,0.2952,3393.4,3393.0,1.7683]
[1735395718983,0.29521,3393.3,3393.0,1.20103]
[1735395719180,0.29521,3393.3,3393.1,0.29523]
[1735395719391,3.2078,3393.8,3393.3,0.2952]
[1735395719392,0.29519,3393.6,3393.3,0.2952]
[1735395720094,0.29519,3393.6,3393.1,0.29523]
[1735395720299,0.8716,3393.9,3393.5,3.2078]
[1735395720590,3.50293,3394.3,3393.9,0.29515]
[1735395720782,3.2078,3394.3,3393.9,3.2078]
[1735395720982,0.29515,3394.0,3393.9,3.2078]
[1735395721183,3.2078,3394.3,3394.0,0.29514]
[1735395721389,3.2078,3394.3,3394.0,0.8828]
[1735395721590,0.29515,3394.0,3393.9,44.0078]
[1735395721794,0.73784,3394.2,3393.5,0.8828]
[1735395722087,3.50292,3394.3,3394.0,0.29514]
[1735395722293,3.2078,3394.3,3393.9,3.2078]
[1735395722885,0.29514,3394.2,3393.9,3.50295]
[1735395723189,0.2951,3394.6,3394.3,0.29512]
[1735395723388,0.2951,3394.5,3394.4,0.9188]
[1735395723782,3.2078,3395.1,3394.4,46.7188]
[1735395723989,5.19779294,3395.5,3394.7,3.2078]
[1735395724192,0.29504,3395.3,3395.0,0.29506]
[1735395724495,0.29505,3395.1,3394.8,0.29507]
[1735395724789,3.2078,3395.5,3394.7,3.2078]
[1735395724991,0.29505,3395.2,3394.9,0.29506]
[1735395725191,3.2078,3395.5,3394.7,3.2078]
[1735395725391,0.29508,3394.8,3394.7,3.2078]
[1735395726187,3.2078,3394.9,3394.3,3.2078]
[1735395726391,0.29515,3394.0,3393.9,3.2078]
[1735395726895,0.29518,3393.6,3393.5,3.2078]
[1735395727595,0.29523,3393.1,3393.0,3.2078]
[1735395727984,0.738,3393.5,3392.8,0.841]
[1735395727985,0.29524,3392.9,3392.8,0.841]
[1735395728588,0.29527,3392.6,3392.5,3.2078]
[1735395729796,0.29527,3392.6,3392.5,44.0078]
[1735395731498,0.29527,3392.6,3392.5,3.2078]
[1735395733294,0.29526,3392.7,3392.5,3.2078]
[1735395733597,1.8209,3393.1,3392.5,3.2078]
[1735395733897,0.9347,3393.1,3392.5,3.2078]
[1735395734096,3.2078,3393.6,3392.9,3.2078]
[1735395734497,3.2078,3394.0,3393.3,3.2078]
[1735395734697,0.29516,3393.9,3393.7,0.29517]
[1735395735097,3.2078,3394.0,3393.4,0.8841]
[1735395735296,0.29517,3393.8,3393.6,0.29518]
[1735395735601,0.29519,3393.5,3393.4,0.8841]
[1735395735994,0.2952,3393.4,3393.3,3.2078]
[1735395736819,0.29516,3393.9,3393.6,0.29518]
[1735395737001,0.29519,3393.6,3393.4,0.29519]
[1735395737196,0.73786,3394.1,3393.3,44.0078]
[1735395737401,0.9122,3394.3,3393.3,44.0078]
[1735395737702,0.73786,3394.1,3393.4,0.2952]
[1735395737906,0.29519,3393.6,3393.4,0.2952]
[1735395738102,0.2952,3393.5,3393.3,44.303]
[1735395738698,0.73783,3394.2,3393.3,44.0078]
[1735395739006,0.2952,3393.4,3393.3,3.2078]
[1735395739705,2.90219294,3394.3,3392.9,3.2078]
[1735395739706,0.29524,3393.0,3392.9,3.2078]
[1735395739899,0.29521,3393.3,3393.1,0.29522]
[1735395740098,0.8872,3393.7,3392.9,3.66927649]
[1735395740305,0.29522,3393.2,3393.0,0.75670649]
[1735395740604,1.62515,3393.7,3393.0,0.29523]
[1735395740807,0.29523,3393.1,3393.0,0.29523]
[1735395741101,0.29523,3393.1,3393.0,0.75669873]
[1735395741309,0.29523,3393.1,3393.0,0.46146873]
[1735395741810,0.29523,3393.1,3393.0,0.75669873]
[1735395742105,0.9078,3393.5,3392.9,3.2078]
[1735395742307,0.9078,3393.5,3393.1,0.29522]
[1735395742308,0.29522,3393.2,3393.1,0.29522]
[1735395742501,0.9078,3393.5,3392.9,3.2078]
[1735395742707,0.29524,3393.0,3392.9,3.2078]
[1735395743209,0.29524,3393.0,3392.9,3.66929479]
[1735395743406,0.29524,3393.0,3392.9,3.2078]
[1735395745406,0.29524,3393.0,3392.5,3.2078]
[1735395745711,0.29527,3392.6,3392.5,3.2078]
[1735395746097,0.8605,3392.7,3392.1,0.29531]
[1735395746401,0.8605,3392.7,3392.0,3.2078]
[1735395746608,3.2078,3392.4,3391.7,1.17905]
[1735395746810,0.29533,3391.9,3391.8,0.75696723]
[1735395747007,0.73822,3392.5,3391.8,41.26162723]
[1735395747202,0.73822,3392.5,3391.9,0.46162723]
[1735395747403,0.29532,3392.1,3392.0,3.66942723]
[1735395747903,0.29532,3392.1,3392.0,0.46162723]
[1735395748102,0.29534,3391.8,3391.6,0.29535]
[1735395748405,3.2078,3392.3,3391.7,0.46164496]
[1735395748605,0.29533,3392.0,3391.8,0.75698496]
[1735395748805,6.05829294,3392.7,3391.9,3.2078]
[1735395749006,3.2078,3392.3,3391.5,3.2078]
[1735395749304,0.73824,3392.4,3391.6,0.46165628]
[1735395749507,0.73819,3392.6,3391.9,0.29533]
[1735395749808,0.8605,3392.7,3392.3,3.2078]
[1735395750109,1.15577,3392.7,3392.5,0.29528]
[1735395750408,0.29528,3392.6,3392.4,0.29529]
[1735395750606,0.29528,3392.5,3392.3,3.50309]
[1735395750798,0.8605,3392.7,3392.3,3.50309]
[1735395751003,0.29529,3392.4,3392.3,3.2078]
[1735395751605,0.73821,3392.5,3391.8,3.2078]
[1735395751801,2.85049294,3392.7,3391.8,3.2078]
[1735395752007,0.8605,3392.7,3392.6,0.29527]
[1735395752200,1.98999294,3393.5,3392.6,3.2078]
[1735395752403,4.9663,3393.6,3393.0,3.2078]
[1735395752710,0.29523,3393.1,3393.0,3.2078]
[1735395753011,4.9663,3393.6,3393.2,0.29522]
[1735395753201,4.0793,3393.6,3393.0,3.2078]
[1735395753402,0.2952,3393.4,3393.2,0.29521]
[1735395754002,0.2952,3393.4,3393.0,3.2078]
[1735395754203,0.8715,3393.6,3393.0,3.2078]
[1735395754407,0.29523,3393.1,3393.0,3.2078]
[1735395754607,1.98999294,3393.5,3392.5,3.2078]
[1735395754813,0.29524,3392.9,3392.8,0.29525]
[1735395755012,0.29524,3392.9,3392.5,3.2078]
[1735395755211,0.29524,3392.9,3392.8,0.29525]
[1735395755409,0.8715,3393.6,3392.5,8.2078]
[1735395755610,0.29521,3393.3,3393.2,0.29521]
[1735395755829,0.8715,3393.6,3392.6,3.66924188]
[1735395756005,0.29525,3392.9,3392.8,0.29525]
[1735395756312,0.29525,3392.8,3392.7,0.29526]
[1735395756704,0.29525,3392.8,3392.7,0.75677195]
[1735395756902,0.29525,3392.8,3392.7,0.46151195]
[1735395757106,0.29526,3392.7,3392.6,3.50307]
[1735395757706,0.29526,3392.7,3392.6,3.2078]
[1735395759914,0.29526,3392.7,3392.0,3.2078]
[1735395759915,5.19779294,3392.7,3392.0,3.2078]
[1735395760123,0.29534,3391.8,3391.7,0.29535]
[1735395760418,0.29534,3391.8,3391.6,3.2078]
[1735395760419,0.73824,3392.4,3391.6,44.0078]
[1735395760615,0.29535,3391.7,3391.6,44.0078]
[1735395760822,0.29535,3391.7,3391.6,3.2078]
[1735395761315,3.2078,3391.8,3391.3,40.8]
[1735395761518,0.29537,3391.4,3391.3,40.8]
[1735395762022,0.29538,3391.3,3391.2,4.1093]
[1735395762214,0.29538,3391.3,3391.2,3.2078]
[1735395765017,0.8382,3391.7,3391.2,3.2078]
[1735395765220,6.06759294,3392.3,3391.6,3.2078]
[1735395765411,0.29535,3391.7,3391.6,3.2078]
[1735395765815,3.94607,3392.2,3391.6,3.2078]
[1735395765816,3.2078,3392.2,3391.6,44.0078]
[1735395766219,0.29535,3391.7,3391.6,44.0078]
[1735395767122,0.29535,3391.7,3391.6,40.8]
[1735395767318,0.29537,3391.5,3391.1,0.9246]
[1735395767523,0.29537,3391.5,3391.4,3.2078]
[1735395768622,0.29539,3391.2,3391.1,0.9246]
[1735395768823,3.2078,3391.8,3391.0,3.2078]
[1735395769016,0.2954,3391.1,3391.0,3.2078]
[1735395769316,0.2954,3391.2,3391.0,3.2078]
[1735395769522,0.29539,3391.3,3391.1,0.2954]
[1735395769818,1.63772,3391.6,3391.0,3.2078]
[1735395770020,0.2954,3391.1,3391.0,3.2078]
[1735395770214,0.2954,3391.1,3391.0,3.50321]
[1735395770416,0.29539,3391.2,3391.1,0.2954]
[1735395770720,0.9043,3391.7,3391.0,3.2078]
[1735395770917,0.29537,3391.5,3391.3,0.29537]
[1735395771115,0.29539,3391.3,3391.2,0.29539]
[1735395771815,3.94616,3391.8,3391.4,0.29537]
[1735395771816,0.29537,3391.6,3391.4,0.29537]
[1735395772118,2.54178,3392.2,3391.4,0.29537]
[1735395772119,0.29537,3391.5,3391.4,0.29537]
[1735395772418,5.19779294,3391.9,3391.1,0.9133]
[1735395772624,0.29538,3391.4,3391.1,0.9133]
[1735395772812,0.29539,3391.2,3391.1,1.2087]
[1735395773017,0.73838,3391.7,3391.1,42.0087]
[1735395773219,0.73838,3391.7,3391.1,41.7133]
[1735395773520,0.29539,3391.2,3391.1,42.0087]
[1735395773722,0.73836,3391.8,3391.1,41.7133]
[1735395774121,5.19779294,3391.9,3391.1,41.7133]
[1735395774322,0.29539,3391.2,3391.1,41.7133]
[1735395774826,0.29539,3391.2,3391.1,0.9133]
[1735395775323,5.19779294,3391.9,3391.1,0.9133]
[1735395775525,0.29536,3391.6,3391.5,0.29536]
[1735395775723,0.29537,3391.5,3391.4,3.50317]
[1735395775924,0.29537,3391.5,3391.4,3.2078]
[1735395776127,5.19779294,3391.9,3391.1,0.9133]
[1735395776316,0.29539,3391.2,3391.1,0.9133]
[1735395777025,0.73841,3391.6,3391.1,0.9133]
[1735395777223,0.29539,3391.3,3391.2,0.29539]
[1735395777526,0.73836,3391.8,3391.1,0.9133]
[1735395777826,0.29539,3391.3,3391.2,0.29539]
[1735395778221,3.2078,3392.1,3391.1,0.9133]
[1735395778416,0.73839,3391.7,3391.1,0.9133]
[1735395778624,0.29539,3391.2,3391.1,1.2087]
[1735395779026,0.7384,3391.6,3391.0,3.2078]
[1735395779226,0.2954,3391.1,3391.0,3.2078]
[1735395779629,0.29543,3390.8,3390.7,0.9079]
[1735395779830,0.29543,3390.8,3390.7,1.20334]
[1735395780430,0.29537,3391.4,3391.1,0.29539]
[1735395780625,4.0933,3391.5,3390.7,0.9079]
[1735395780927,0.2954,3391.2,3391.1,0.29539]
[1735395781324,0.2954,3391.1,3391.0,3.50321]
[1735395781530,1.62393,3391.5,3391.0,3.2078]
[1735395781531,0.8855,3391.5,3391.0,3.2078]
[1735395781735,0.73838,3391.7,3391.0,3.2078]
[1735395782031,0.29539,3391.3,3391.2,0.29539]
[1735395782234,0.29537,3391.5,3391.4,0.29537]
[1735395782627,4.87355064,3391.9,3391.0,3.2078]
[1735395782828,0.29543,3390.8,3390.7,0.29543]
[1735395783033,0.7385,3391.2,3390.6,4.1164]
[1735395783228,0.29544,3390.7,3390.6,4.41184]
[1735395783428,0.29544,3390.7,3390.6,4.1164]
[1735395783633,0.29544,3390.7,3390.6,4.41184]
[1735395783823,1.5928,3391.2,3390.6,4.1164]
[1735395783824,0.8543,3391.2,3390.6,4.1164]
[1735395784026,0.29542,3391.0,3390.7,0.29544]
[1735395784329,0.29542,3391.0,3390.9,0.29542]
[1735395785631,0.29542,3390.9,3390.8,0.8852]
[1735395786127,0.29542,3390.9,3390.8,1.18063]
[1735395786437,0.29541,3391.1,3391.0,0.2954]
[1735395786635,2.40416064,3391.6,3391.0,3.2078]
[1735395786830,0.2954,3391.1,3391.0,3.2078]
[1735395787031,0.2954,3391.1,3391.0,3.50321]
[1735395787539,0.2954,3391.1,3391.0,3.96493098]
[1735395788031,0.2954,3391.2,3391.1,0.29539]
[1735395788234,1.803,3391.9,3391.1,0.46170338]
[1735395788439,0.29536,3391.7,3391.6,3.50314]
[1735395788932,0.8904,3391.9,3391.6,3.2078]
[1735395789135,0.29534,3391.8,3391.7,0.29534]
[1735395789336,0.29534,3391.9,3391.8,0.29533]
[1735395789629,0.29535,3391.7,3391.6,3.2078]
[1735395790426,0.29533,3392.0,3391.9,0.29533]
[1735395790631,6.70845064,3392.4,3391.6,3.2078]
[1735395790833,1.66575064,3392.1,3391.6,3.2078]
[1735395791131,0.29539,3391.3,3391.1,3.2078]
[1735395791333,1.66575064,3391.8,3391.2,0.46169393]
[1735395791534,1.66575064,3391.5,3391.1,3.2078]
[1735395791734,1.96114064,3391.2,3391.1,3.2078]
[1735395791927,1.96114064,3391.2,3390.6,3.2078]
[1735395791928,0.29544,3390.7,3390.6,3.2078]
[1735395792128,0.29544,3390.7,3390.6,3.66958762]
[1735395792438,0.29544,3390.7,3390.6,3.2078]
[1735395793237,0.29544,3390.7,3390.6,3.66959292]
[1735395793436,0.29544,3390.7,3390.6,3.96503292]
[1735395793633,0.29544,3390.7,3390.6,3.66959292]
[1735395794129,0.29544,3390.7,3390.6,3.2078]
[1735395795432,0.29544,3390.7,3390.6,3.50324]
[1735395795635,0.29544,3390.7,3390.6,3.2078]
[1735395798243,0.73849,3391.2,3390.6,3.2078]
[1735395798439,0.73849,3391.2,3390.7,1.20343]
[1735395798741,0.29543,3390.8,3390.7,0.908]
[1735395798943,0.29543,3390.8,3390.7,41.708]
[1735395799935,0.8932,3391.5,3390.7,41.708]
[1735395800145,0.8932,3391.5,3391.3,0.29537]
[1735395800539,0.29539,3391.2,3391.1,3.2078]
[1735395800936,0.8932,3391.5,3391.2,0.29539]
[1735395800937,0.29539,3391.3,3391.2,0.29539]
[1735395801447,0.29538,3391.4,3391.2,0.29539]
[1735395801648,0.29538,3391.3,3391.2,0.29539]
[1735395802140,0.73839,3391.7,3391.1,3.2078]
[1735395802835,0.29539,3391.3,3391.1,3.2078]
[1735395803040,0.73839,3391.7,3391.1,3.50319]
[1735395803238,0.73839,3391.7,3391.1,3.2078]
[1735395803239,0.29539,3391.2,3391.1,3.2078]
[1735395804142,2.73020461,3391.3,3390.6,3.2078]
[1735395804341,2.73020461,3391.3,3390.7,0.75721295]
[1735395804342,0.29543,3390.8,3390.7,0.75721295]
[1735395804543,3.2078,3391.6,3390.7,0.46178295]
[1735395804752,0.29539,3391.2,3391.1,0.2954]
[1735395805054,0.29541,3391.1,3390.9,0.29541]
[1735395805248,0.29541,3391.1,3390.6,3.94642]
[1735395805542,0.29539,3391.2,3391.1,0.2954]
[1735395805952,8.945711,3391.6,3391.0,3.2078]
[1735395806153,0.2954,3391.1,3391.0,3.5032]
[1735395806345,0.2954,3391.1,3391.0,3.96493865]
[1735395807151,0.2954,3391.1,3391.0,3.5032]
[1735395807353,0.2954,3391.1,3391.0,3.2078]
[1735395808251,0.2954,3391.1,3391.0,3.50321]
[1735395808449,0.73843,3391.5,3391.0,3.50321]
[1735395808450,0.29539,3391.3,3391.2,0.29538]
[1735395808648,3.2078,3391.6,3391.1,0.9013]
[1735395808949,0.29536,3391.6,3391.5,3.50317]
[1735395809149,5.737911,3391.8,3391.5,3.2078]
[1735395809350,0.29536,3391.7,3391.6,0.29535]
[1735395810448,6.578111,3392.3,3391.8,0.29533]
[1735395810449,0.29534,3391.9,3391.8,0.29533]
[1735395810654,0.29535,3391.8,3391.7,0.29534]
[1735395811451,0.29533,3392.0,3391.9,0.29533]
[1735395811650,0.29532,3392.0,3391.9,0.29532]
[1735395812656,3.2078,3392.4,3391.5,3.2078]
[1735395812954,0.29533,3392.0,3391.9,0.29533]
[1735395813155,0.2953,3392.3,3392.2,0.2953]
[1735395813457,3.2078,3392.4,3391.9,3.2078]
[1735395813759,3.2078,3392.4,3392.3,0.2953]
[1735395813958,5.737911,3392.7,3392.3,3.2078]
[1735395814162,0.29529,3392.4,3392.3,3.2078]
[1735395814460,0.73818,3392.7,3392.1,0.29531]
[1735395814660,0.2953,3392.3,3392.1,0.29531]
[1735395814856,0.2953,3392.2,3392.1,0.29531]
[1735395815052,0.7382,3392.6,3392.1,0.29531]
[1735395815261,0.73816,3392.7,3392.0,0.9268]
[1735395815459,0.2953,3392.3,3392.0,0.9268]
[1735395815761,0.8822,3392.8,3392.0,0.9268]
[1735395815954,0.8822,3392.8,3392.5,0.29527]
[1735395816153,0.29527,3392.6,3392.5,0.29527]
[1735395816364,0.8822,3392.8,3392.4,3.50308]
[1735395816662,0.29527,3392.6,3392.4,3.2078]
[1735395816863,0.29528,3392.5,3392.4,3.2078]
[1735395817159,0.8822,3392.8,3392.5,0.29527]
[1735395817160,0.29527,3392.7,3392.5,0.29527]
[1735395817358,0.29527,3392.6,3392.5,0.8508]
[1735395817553,5.737911,3393.3,3392.5,7.1328]
[1735395817750,5.737911,3393.3,3393.2,3.50302]
[1735395818057,3.2078,3394.4,3393.4,0.2952]
[1735395818058,5.737911,3393.5,3393.4,0.2952]
[1735395818558,5.737911,3393.5,3393.4,46.0952]
[1735395818559,2.927811,3393.5,3393.4,46.0952]
[1735395818766,2.927811,3393.5,3393.4,46.5565296]
[1735395819260,9.56371436,3394.3,3393.4,46.5565296]
[1735395819261,9.26858436,3394.3,3393.4,47.92546097]